[Event "Live Chess"]
[Site "Chess.com"]
[Date "2023.05.21"]
[Round "-"]
[White "GMMickeyAdams"]
[Black "EdenHazard8"]
[Result "1-0"]
[WhiteElo "2785"]
[BlackElo "1993"]
[TimeControl "300"]
[EndTime "6:43:12 PDT"]
[Termination "GMMickeyAdams won by resignation"]

1. c4 {[%clk 0:04:58]} 1... e6 {[%clk 0:04:53.1]} 2. g3 {[%clk 0:04:55.9]} 2...
d5 {[%clk 0:04:52.1]} 3. Bg2 {[%clk 0:04:54.6]} 3... Nf6 {[%clk 0:04:50.9]} 4.
Nf3 {[%clk 0:04:53.6]} 4... Be7 {[%clk 0:04:48.3]} 5. O-O {[%clk 0:04:52]} 5...
O-O {[%clk 0:04:47.4]} 6. d4 {[%clk 0:04:48.4]} 6... dxc4 {[%clk 0:04:40.3]} 7.
Ne5 {[%clk 0:04:47]} 7... Nd5 {[%clk 0:04:31.7]} 8. Nxc4 {[%clk 0:04:44.1]} 8...
b5 {[%clk 0:04:21.1]} 9. Ne5 {[%clk 0:04:41.4]} 9... Bb7 {[%clk 0:04:18.4]} 10.
Nd2 {[%clk 0:04:36.6]} 10... Nd7 {[%clk 0:04:16.2]} 11. Nxd7 {[%clk 0:04:31.4]}
11... Qxd7 {[%clk 0:04:14.2]} 12. Nb3 {[%clk 0:04:30.4]} 12... a5 {[%clk
0:04:06.6]} 13. e4 {[%clk 0:04:28.6]} 13... Nb6 {[%clk 0:04:01.7]} 14. Bf4
{[%clk 0:04:20.8]} 14... Nc4 {[%clk 0:03:55.5]} 15. Qc2 {[%clk 0:04:16]} 15...
Rfc8 {[%clk 0:03:25.9]} 16. Rfd1 {[%clk 0:04:13.3]} 16... c6 {[%clk 0:03:21.5]}
17. Nc5 {[%clk 0:04:09.3]} 17... Bxc5 {[%clk 0:03:20.5]} 18. dxc5 {[%clk
0:04:08.3]} 18... Qe7 {[%clk 0:03:18.9]} 19. b3 {[%clk 0:04:00.7]} 19... e5
{[%clk 0:03:17.7]} 20. Bc1 {[%clk 0:03:58.2]} 20... Qxc5 {[%clk 0:03:07.7]} 21.
bxc4 {[%clk 0:03:56.3]} 21... bxc4 {[%clk 0:03:07.6]} 22. Be3 {[%clk 0:03:54.5]}
22... Qe7 {[%clk 0:02:59.9]} 23. Qxc4 {[%clk 0:03:52.8]} 23... Ba6 {[%clk
0:02:59.1]} 24. Qc5 {[%clk 0:03:51.4]} 24... Qxc5 {[%clk 0:02:57.8]} 25. Bxc5
{[%clk 0:03:50.3]} 25... f6 {[%clk 0:02:56.6]} 26. Bh3 {[%clk 0:03:48.3]} 1-0

[Event "Live Chess"]
[Site "Chess.com"]
[Date "2023.05.21"]
[Round "-"]
[White "Brooms1989"]
[Black "AbilifyXL"]
[Result "0-1"]
[WhiteElo "1165"]
[BlackElo "1971"]
[TimeControl "300"]
[EndTime "6:43:14 PDT"]
[Termination "AbilifyXL won by resignation"]

1. e4 {[%clk 0:04:58.1]} 1... d5 {[%clk 0:04:59.1]} 2. exd5 {[%clk 0:04:54.8]}
2... Qxd5 {[%clk 0:04:58.2]} 3. Nc3 {[%clk 0:04:54.2]} 3... Qa5 {[%clk
0:04:57.4]} 4. d4 {[%clk 0:04:52.9]} 4... c6 {[%clk 0:04:56.5]} 5. Bd2 {[%clk
0:04:52.2]} 5... Qc7 {[%clk 0:04:50]} 6. Nf3 {[%clk 0:04:49.7]} 6... Nf6 {[%clk
0:04:49.2]} 7. Bc4 {[%clk 0:04:47.7]} 7... Bf5 {[%clk 0:04:48.2]} 8. O-O {[%clk
0:04:45]} 8... e6 {[%clk 0:04:47.4]} 9. Bg5 {[%clk 0:04:35.8]} 9... Nbd7 {[%clk
0:04:46.1]} 10. Ne5 {[%clk 0:04:29.5]} 10... Nxe5 {[%clk 0:04:42]} 11. dxe5
{[%clk 0:04:28.6]} 11... Qxe5 {[%clk 0:04:41.2]} 12. f4 {[%clk 0:04:21.7]} 12...
Qc5+ {[%clk 0:04:39.4]} 13. Kh1 {[%clk 0:04:15.8]} 13... Qxc4 {[%clk 0:04:38.4]}
14. Qd2 {[%clk 0:04:06.7]} 14... Be7 {[%clk 0:04:34.8]} 15. Rad1 {[%clk
0:04:00.8]} 15... O-O {[%clk 0:04:32.2]} 16. b3 {[%clk 0:03:59.4]} 16... Qb4
{[%clk 0:04:23.6]} 17. Rf3 {[%clk 0:03:43.2]} 17... Rad8 {[%clk 0:04:14.8]} 18.
Qe1 {[%clk 0:03:38.3]} 18... Bg4 {[%clk 0:04:04.7]} 19. Rxd8 {[%clk 0:03:24.5]}
19... Rxd8 {[%clk 0:04:03.2]} 20. Rg3 {[%clk 0:03:21.2]} 20... Bf5 {[%clk
0:03:47.5]} 21. h4 {[%clk 0:03:12.4]} 21... Ne4 {[%clk 0:03:23.9]} 22. Bxe7
{[%clk 0:02:53.6]} 22... Nxg3+ {[%clk 0:03:20.6]} 23. Kh2 {[%clk 0:02:52.8]}
23... Qxe7 {[%clk 0:03:16.2]} 24. Kxg3 {[%clk 0:02:50.5]} 24... h6 {[%clk
0:03:14.8]} 25. Qd2 {[%clk 0:02:41.2]} 0-1

[Event "Live Chess"]
[Site "Chess.com"]
[Date "2023.05.21"]
[Round "-"]
[White "mliszewski"]
[Black "JoRoSaR"]
[Result "1-0"]
[WhiteElo "1821"]
[BlackElo "1664"]
[TimeControl "300"]
[EndTime "6:43:18 PDT"]
[Termination "mliszewski won by resignation"]

1. d4 {[%clk 0:04:54.9]} 1... f5 {[%clk 0:04:58.7]} 2. Qd3 {[%clk 0:04:53.3]}
2... d6 {[%clk 0:04:57]} 3. g4 {[%clk 0:04:51.3]} 3... fxg4 {[%clk 0:04:54.9]}
4. h3 {[%clk 0:04:50.7]} 4... Nf6 {[%clk 0:04:53.4]} 5. hxg4 {[%clk 0:04:49.1]}
5... Bxg4 {[%clk 0:04:49.5]} 6. Bg5 {[%clk 0:04:45.5]} 6... g6 {[%clk
0:04:46.1]} 7. Nc3 {[%clk 0:04:39.4]} 7... Bg7 {[%clk 0:04:45]} 8. f3 {[%clk
0:04:37.8]} 8... Bd7 {[%clk 0:04:42.2]} 9. Bxf6 {[%clk 0:04:31.7]} 9... exf6
{[%clk 0:04:40.7]} 10. Rxh7 {[%clk 0:04:16.8]} 10... Kf7 {[%clk 0:04:36.1]} 11.
Rxh8 {[%clk 0:04:12.4]} 11... Qxh8 {[%clk 0:04:35.1]} 12. O-O-O {[%clk
0:04:11.9]} 12... c6 {[%clk 0:04:29.9]} 13. e4 {[%clk 0:04:10.6]} 13... Be6
{[%clk 0:04:28.3]} 14. f4 {[%clk 0:04:08.3]} 14... d5 {[%clk 0:04:27.4]} 15. e5
{[%clk 0:04:07]} 15... f5 {[%clk 0:04:26.1]} 16. Nf3 {[%clk 0:04:05.5]} 16...
Nd7 {[%clk 0:04:24.5]} 17. Ng5+ {[%clk 0:04:04.3]} 17... Ke7 {[%clk 0:04:22.6]}
18. Nxe6 {[%clk 0:04:02.5]} 18... Kxe6 {[%clk 0:04:22]} 19. Bg2 {[%clk
0:03:54.4]} 19... Qh2 {[%clk 0:04:21]} 20. Qf3 {[%clk 0:03:52.8]} 20... Bh6
{[%clk 0:04:16.7]} 21. Ne2 {[%clk 0:03:52.3]} 21... Qh4 {[%clk 0:04:07.2]} 22.
Rh1 {[%clk 0:03:49.7]} 1-0

[Event "Live Chess"]
[Site "Chess.com"]
[Date "2023.05.21"]
[Round "-"]
[White "Biranidun"]
[Black "1600x"]
[Result "1-0"]
[WhiteElo "2515"]
[BlackElo "1901"]
[TimeControl "300"]
[EndTime "6:43:20 PDT"]
[Termination "Biranidun won by checkmate"]

1. e4 {[%clk 0:04:58.1]} 1... e5 {[%clk 0:04:56.8]} 2. Nf3 {[%clk 0:04:57.2]}
2... Nf6 {[%clk 0:04:54.6]} 3. Nxe5 {[%clk 0:04:56.3]} 3... Qe7 {[%clk
0:04:52.8]} 4. d4 {[%clk 0:04:52.9]} 4... Nc6 {[%clk 0:04:50.3]} 5. Nxc6 {[%clk
0:04:46.4]} 5... Qxe4+ {[%clk 0:04:48.5]} 6. Be2 {[%clk 0:04:45.1]} 6... Qxc6
{[%clk 0:04:47.2]} 7. O-O {[%clk 0:04:43.4]} 7... d5 {[%clk 0:04:42.1]} 8. Bf3
{[%clk 0:04:36.2]} 8... Be6 {[%clk 0:04:38.8]} 9. Bg5 {[%clk 0:04:32.6]} 9...
Be7 {[%clk 0:04:35.6]} 10. Nd2 {[%clk 0:04:31.9]} 10... O-O {[%clk 0:04:32.5]}
11. Re1 {[%clk 0:04:29.7]} 11... Qb6 {[%clk 0:04:28.9]} 12. Nb3 {[%clk
0:04:27.9]} 12... h6 {[%clk 0:04:25.8]} 13. Bh4 {[%clk 0:04:23.4]} 13... Rae8
{[%clk 0:04:22.4]} 14. c3 {[%clk 0:04:21.8]} 14... Ne4 {[%clk 0:04:17.6]} 15.
Bxe7 {[%clk 0:04:19.7]} 15... Rxe7 {[%clk 0:04:15]} 16. Bxe4 {[%clk 0:04:16.6]}
16... dxe4 {[%clk 0:04:06]} 17. Nc5 {[%clk 0:04:15.9]} 17... Bc8 {[%clk
0:04:03.1]} 18. Qb3 {[%clk 0:04:11.8]} 18... Rfe8 {[%clk 0:03:50.2]} 19. Re3
{[%clk 0:04:07.4]} 19... Qxb3 {[%clk 0:03:44.5]} 20. axb3 {[%clk 0:04:07.3]}
20... a5 {[%clk 0:03:42.7]} 21. Rae1 {[%clk 0:03:55.1]} 21... f5 {[%clk
0:03:39.1]} 22. f3 {[%clk 0:03:08.7]} 22... Bd7 {[%clk 0:03:39]} 23. Nxd7 {[%clk
0:03:06.4]} 23... Rxd7 {[%clk 0:03:35]} 24. fxe4 {[%clk 0:03:05.8]} 24... c6
{[%clk 0:03:33.4]} 25. exf5 {[%clk 0:03:03.1]} 25... Rxe3 {[%clk 0:03:29.6]} 26.
Rxe3 {[%clk 0:03:03]} 26... Rf7 {[%clk 0:03:28]} 27. Re5 {[%clk 0:03:01.7]}
27... b6 {[%clk 0:03:25.6]} 28. g4 {[%clk 0:02:59.8]} 28... h5 {[%clk 0:03:24]}
29. h3 {[%clk 0:02:58.6]} 29... hxg4 {[%clk 0:03:23]} 30. hxg4 {[%clk
0:02:58.5]} 30... Rd7 {[%clk 0:03:21.1]} 31. Re6 {[%clk 0:02:56.6]} 31... c5
{[%clk 0:03:19.3]} 32. dxc5 {[%clk 0:02:50.8]} 32... Rd1+ {[%clk 0:03:14.5]} 33.
Kf2 {[%clk 0:02:50]} 33... bxc5 {[%clk 0:03:12]} 34. Re5 {[%clk 0:02:41.5]}
34... Rd2+ {[%clk 0:03:09.1]} 35. Re2 {[%clk 0:02:40.5]} 35... Rd8 {[%clk
0:03:05.1]} 36. Kf3 {[%clk 0:02:39.8]} 36... Rb8 {[%clk 0:03:03.7]} 37. Ke4
{[%clk 0:02:35.7]} 37... Re8+ {[%clk 0:03:00]} 38. Kd3 {[%clk 0:02:34.7]} 38...
Rb8 {[%clk 0:02:48.8]} 39. Kc4 {[%clk 0:02:33.2]} 39... g6 {[%clk 0:02:46.5]}
40. fxg6 {[%clk 0:02:31.9]} 40... Kg7 {[%clk 0:02:44.6]} 41. Re5 {[%clk
0:02:31.5]} 41... Kxg6 {[%clk 0:02:41]} 42. Rxc5 {[%clk 0:02:30.5]} 42... Ra8
{[%clk 0:02:38.1]} 43. Kb5 {[%clk 0:02:27.7]} 43... Kf7 {[%clk 0:02:35.9]} 44.
Ka4 {[%clk 0:02:26.5]} 44... Rh8 {[%clk 0:02:33]} 45. Rxa5 {[%clk 0:02:24.5]}
45... Rh2 {[%clk 0:02:29.4]} 46. b4 {[%clk 0:02:22.6]} 46... Rxb2 {[%clk
0:02:27.9]} 47. Rf5+ {[%clk 0:02:20.4]} 47... Ke6 {[%clk 0:02:25.3]} 48. c4
{[%clk 0:02:16.8]} 48... Rg2 {[%clk 0:02:22.4]} 49. Rg5 {[%clk 0:02:14.2]} 49...
Ra2+ {[%clk 0:02:19]} 50. Kb5 {[%clk 0:02:13.1]} 50... Ra8 {[%clk 0:02:04.3]}
51. c5 {[%clk 0:02:12.1]} 51... Kf6 {[%clk 0:01:45.1]} 52. Rf5+ {[%clk
0:02:10.8]} 52... Ke6 {[%clk 0:01:43.5]} 53. c6 {[%clk 0:02:10.7]} 53... Kd6
{[%clk 0:01:42.4]} 54. Rf6+ {[%clk 0:02:08.8]} 54... Ke7 {[%clk 0:01:40.4]} 55.
Rh6 {[%clk 0:02:06.2]} 55... Rc8 {[%clk 0:01:38.2]} 56. Kc5 {[%clk 0:02:04.9]}
56... Rg8 {[%clk 0:01:36]} 57. b5 {[%clk 0:02:03.2]} 57... Kf7 {[%clk
0:01:32.8]} 58. b6 {[%clk 0:01:59.1]} 58... Rxg4 {[%clk 0:01:31.7]} 59. b7
{[%clk 0:01:57.9]} 59... Rg8 {[%clk 0:01:30.4]} 60. c7 {[%clk 0:01:56.5]} 60...
Ke7 {[%clk 0:01:29.4]} 61. c8=Q {[%clk 0:01:55.4]} 61... Rg5+ {[%clk 0:01:27]}
62. Kd4 {[%clk 0:01:52.8]} 62... Rg6 {[%clk 0:01:15]} 63. Rxg6 {[%clk
0:01:49.9]} 63... Kf7 {[%clk 0:01:13.9]} 64. Qe6+ {[%clk 0:01:49.2]} 64... Kf8
{[%clk 0:01:12.7]} 65. b8=Q# {[%clk 0:01:48.9]} 1-0

[Event "Live Chess"]
[Site "Chess.com"]
[Date "2023.05.21"]
[Round "-"]
[White "LordBenin"]
[Black "Missedidea"]
[Result "1/2-1/2"]
[WhiteElo "1394"]
[BlackElo "1774"]
[TimeControl "300"]
[EndTime "6:43:24 PDT"]
[Termination "Game drawn by agreement"]

1. e4 {[%clk 0:04:58]} 1... c5 {[%clk 0:04:58.3]} 2. Nc3 {[%clk 0:04:56.3]} 2...
g6 {[%clk 0:04:56.3]} 3. Bc4 {[%clk 0:04:54.9]} 3... Bg7 {[%clk 0:04:55]} 4. d3
{[%clk 0:04:53.6]} 4... e6 {[%clk 0:04:54.1]} 5. Nge2 {[%clk 0:04:52.2]} 5... a6
{[%clk 0:04:53.2]} 6. O-O {[%clk 0:04:50.9]} 6... b5 {[%clk 0:04:51.3]} 7. Bb3
{[%clk 0:04:49.6]} 7... Bb7 {[%clk 0:04:50]} 8. a3 {[%clk 0:04:47.9]} 8... Ne7
{[%clk 0:04:47]} 9. f4 {[%clk 0:04:46.5]} 9... O-O {[%clk 0:04:44.1]} 10. Be3
{[%clk 0:04:44]} 10... Qc7 {[%clk 0:04:36]} 11. f5 {[%clk 0:04:39.6]} 11... exf5
{[%clk 0:04:33.6]} 12. exf5 {[%clk 0:04:38.2]} 12... gxf5 {[%clk 0:04:21.2]} 13.
Qd2 {[%clk 0:04:30]} 13... Qc6 {[%clk 0:04:18.6]} 14. Rf2 {[%clk 0:04:22.9]}
14... Ng6 {[%clk 0:04:10]} 15. Bd5 {[%clk 0:04:15]} 15... Qb6 {[%clk 0:04:08.7]}
16. Bxb7 {[%clk 0:04:13.6]} 16... Qxb7 {[%clk 0:04:06.7]} 17. Rxf5 {[%clk
0:04:10.8]} 17... d6 {[%clk 0:04:05.8]} 18. Raf1 {[%clk 0:04:02.5]} 18... Nd7
{[%clk 0:04:03.3]} 19. Nf4 {[%clk 0:03:54.4]} 19... Nde5 {[%clk 0:03:57.5]} 20.
Nxg6 {[%clk 0:03:49.7]} 20... hxg6 {[%clk 0:03:55.5]} 21. R5f2 {[%clk 0:03:43]}
21... b4 {[%clk 0:03:46.6]} 22. axb4 {[%clk 0:03:38.9]} 22... cxb4 {[%clk
0:03:45.4]} 23. Ne4 {[%clk 0:03:38]} 23... Rad8 {[%clk 0:03:34.4]} 24. Bh6
{[%clk 0:03:34.2]} 24... f5 {[%clk 0:03:28.6]} 25. Bxg7 {[%clk 0:03:30.3]} 25...
Kxg7 {[%clk 0:03:26.3]} 26. Ng5 {[%clk 0:03:27.4]} 26... Rde8 {[%clk 0:03:20.7]}
27. h3 {[%clk 0:03:12.1]} 27... a5 {[%clk 0:03:13.6]} 28. b3 {[%clk 0:03:09.1]}
28... Qd5 {[%clk 0:03:11.5]} 29. Re1 {[%clk 0:02:59.4]} 29... Nf7 {[%clk
0:02:52.2]} 30. Rxe8 {[%clk 0:02:53.2]} 30... Rxe8 {[%clk 0:02:50.1]} 31. Nxf7
{[%clk 0:02:49.4]} 31... Kxf7 {[%clk 0:02:46.9]} 32. Re2 {[%clk 0:02:45.7]}
32... Qd4+ {[%clk 0:02:42.8]} 33. Kh1 {[%clk 0:02:41.4]} 33... Qa1+ {[%clk
0:02:38.3]} 34. Kh2 {[%clk 0:02:39.3]} 34... Re5 {[%clk 0:02:35.4]} 35. Rxe5
{[%clk 0:02:32.3]} 35... Qxe5+ {[%clk 0:02:33]} 36. Kh1 {[%clk 0:02:29.2]} 36...
Qa1+ {[%clk 0:02:30.5]} 37. Kh2 {[%clk 0:02:28.1]} 37... Kf6 {[%clk 0:02:26.7]}
38. Qf2 {[%clk 0:02:17.5]} 38... Qe5+ {[%clk 0:02:23.3]} 39. Kh1 {[%clk
0:02:15.8]} 39... g5 {[%clk 0:02:19.5]} 40. Kg1 {[%clk 0:02:02.3]} 40... f4
{[%clk 0:02:15.5]} 41. Kh2 {[%clk 0:01:57.1]} 41... Kf5 {[%clk 0:02:03.9]} 42.
Kh1 {[%clk 0:01:53.5]} 42... g4 {[%clk 0:01:56.9]} 43. hxg4+ {[%clk 0:01:51.8]}
43... Kxg4 {[%clk 0:01:54.9]} 44. Qf3+ {[%clk 0:01:50.1]} 44... Kg5 {[%clk
0:01:51.6]} 45. Kh2 {[%clk 0:01:26.6]} 45... Qe1 {[%clk 0:01:44.3]} 46. Qd5+
{[%clk 0:01:21.6]} 46... Qe5 {[%clk 0:01:41.6]} 47. Qxe5+ {[%clk 0:01:18.4]}
47... dxe5 {[%clk 0:01:39.2]} 48. Kg1 {[%clk 0:01:16]} 48... Kh4 {[%clk
0:01:36.6]} 49. Kf2 {[%clk 0:01:15.1]} 49... Kg4 {[%clk 0:01:35.3]} 50. Ke2
{[%clk 0:01:13.3]} 50... Kg3 {[%clk 0:01:33.9]} 51. Kf1 {[%clk 0:01:11.6]} 51...
Kg4 {[%clk 0:01:30.1]} 52. Kf2 {[%clk 0:01:10.4]} 52... Kf5 {[%clk 0:01:27.4]}
53. Kf3 {[%clk 0:01:09.2]} 1/2-1/2

[Event "Live Chess"]
[Site "Chess.com"]
[Date "2023.05.21"]
[Round "-"]
[White "grillage"]
[Black "ProfPoisson"]
[Result "1-0"]
[WhiteElo "1773"]
[BlackElo "1218"]
[TimeControl "300"]
[EndTime "6:43:27 PDT"]
[Termination "grillage won by resignation"]

1. d4 {[%clk 0:04:59.3]} 1... e6 {[%clk 0:04:56.5]} 2. Nf3 {[%clk 0:04:52.5]}
2... f5 {[%clk 0:04:54.3]} 3. d5 {[%clk 0:04:50.8]} 3... exd5 {[%clk 0:04:37.4]}
4. Qxd5 {[%clk 0:04:46.4]} 4... d6 {[%clk 0:04:31.3]} 5. Nc3 {[%clk 0:04:24]}
5... Nf6 {[%clk 0:04:29.3]} 6. Qd1 {[%clk 0:04:21.6]} 6... Be7 {[%clk
0:04:26.1]} 7. Bg5 {[%clk 0:04:19.6]} 7... O-O {[%clk 0:04:24.2]} 8. e3 {[%clk
0:04:11.7]} 8... Nc6 {[%clk 0:04:13.9]} 9. Bc4+ {[%clk 0:03:53.9]} 9... Kh8
{[%clk 0:03:59.4]} 10. O-O {[%clk 0:03:49.3]} 10... Ne4 {[%clk 0:03:43.8]} 11.
Bxe7 {[%clk 0:03:45.3]} 11... Nxe7 {[%clk 0:03:34.8]} 12. Nd5 {[%clk 0:03:38]}
12... Nxd5 {[%clk 0:03:32.7]} 13. Bxd5 {[%clk 0:03:36.4]} 13... c6 {[%clk
0:03:30.7]} 14. Bb3 {[%clk 0:03:33.5]} 14... d5 {[%clk 0:03:28.4]} 15. c4 {[%clk
0:03:29.3]} 15... Be6 {[%clk 0:03:17.8]} 16. cxd5 {[%clk 0:03:27.4]} 16... Bxd5
{[%clk 0:03:15.3]} 17. Bxd5 {[%clk 0:03:24.8]} 17... cxd5 {[%clk 0:03:13.1]} 18.
Nd4 {[%clk 0:03:23.1]} 18... Rf6 {[%clk 0:03:10]} 19. Rc1 {[%clk 0:03:18.7]}
19... Qd7 {[%clk 0:02:56.9]} 20. Rc2 {[%clk 0:03:12.8]} 20... Raf8 {[%clk
0:02:53.9]} 21. Ne2 {[%clk 0:03:08.8]} 21... Rh6 {[%clk 0:02:47.2]} 22. Nf4
{[%clk 0:03:07.4]} 22... Qe7 {[%clk 0:02:35.8]} 23. Qxd5 {[%clk 0:02:59.3]}
23... Qh4 {[%clk 0:02:32.6]} 24. h3 {[%clk 0:02:55.6]} 24... Nf6 {[%clk
0:02:20.2]} 25. Qc5 {[%clk 0:02:49.5]} 25... g5 {[%clk 0:02:11.5]} 26. Qxf8+
{[%clk 0:02:46.6]} 26... Ng8 {[%clk 0:02:08]} 27. Rc8 {[%clk 0:02:39.4]} 1-0

[Event "Live Chess"]
[Site "Chess.com"]
[Date "2023.05.21"]
[Round "-"]
[White "mattihelenius2"]
[Black "martynstanley"]
[Result "0-1"]
[WhiteElo "490"]
[BlackElo "1026"]
[TimeControl "300"]
[EndTime "6:43:34 PDT"]
[Termination "martynstanley won by resignation"]

1. d4 {[%clk 0:04:57.1]} 1... e6 {[%clk 0:04:59.2]} 2. c4 {[%clk 0:04:56.4]}
2... d5 {[%clk 0:04:58.5]} 3. Nc3 {[%clk 0:04:55.3]} 3... c5 {[%clk 0:04:57.4]}
4. e3 {[%clk 0:04:53.3]} 4... Nc6 {[%clk 0:04:56.6]} 5. Nf3 {[%clk 0:04:51.5]}
5... Qb6 {[%clk 0:04:55.6]} 6. Ne5 {[%clk 0:04:50.4]} 6... Nh6 {[%clk
0:04:53.3]} 7. Qb3 {[%clk 0:04:40.1]} 7... Qxb3 {[%clk 0:04:51.7]} 8. axb3
{[%clk 0:04:37.6]} 8... Nf5 {[%clk 0:04:50.4]} 9. dxc5 {[%clk 0:04:22.7]} 9...
Bxc5 {[%clk 0:04:49.1]} 10. Bd3 {[%clk 0:04:17.2]} 10... d4 {[%clk 0:04:47.6]}
11. Bxf5 {[%clk 0:04:15.6]} 11... exf5 {[%clk 0:04:41.7]} 12. Nd5 {[%clk
0:04:09.4]} 12... Bd6 {[%clk 0:04:27.9]} 13. c5 {[%clk 0:04:05.3]} 13... Bxe5
{[%clk 0:04:25.1]} 14. Nc7+ {[%clk 0:04:04]} 14... Bxc7 {[%clk 0:04:23.8]} 15.
b4 {[%clk 0:03:58.3]} 15... Nxb4 {[%clk 0:04:21.6]} 0-1

[Event "Live Chess"]
[Site "Chess.com"]
[Date "2023.05.21"]
[Round "-"]
[White "Ferrarifan27"]
[Black "Alfiedog12"]
[Result "1-0"]
[WhiteElo "2070"]
[BlackElo "905"]
[TimeControl "300"]
[EndTime "6:43:38 PDT"]
[Termination "Ferrarifan27 won by resignation"]

1. e4 {[%clk 0:04:58.9]} 1... c6 {[%clk 0:04:58.1]} 2. d4 {[%clk 0:04:57.5]}
2... d5 {[%clk 0:04:57.2]} 3. e5 {[%clk 0:04:56.9]} 3... Bf5 {[%clk 0:04:55.6]}
4. h4 {[%clk 0:04:55.3]} 4... e6 {[%clk 0:04:54.6]} 5. g4 {[%clk 0:04:53.8]}
5... Be4 {[%clk 0:04:48.4]} 6. f3 {[%clk 0:04:51.6]} 6... Qa5+ {[%clk
0:04:39.1]} 7. Nc3 {[%clk 0:04:38.4]} 7... Bg6 {[%clk 0:04:26.3]} 8. h5 {[%clk
0:04:36.7]} 8... Bxc2 {[%clk 0:04:23.4]} 9. Qxc2 {[%clk 0:04:34.8]} 9... Bb4
{[%clk 0:04:21]} 10. Bd2 {[%clk 0:04:33.2]} 10... Bxc3 {[%clk 0:04:19]} 11. bxc3
{[%clk 0:04:30.7]} 11... Ne7 {[%clk 0:04:13.8]} 12. Rb1 {[%clk 0:04:29]} 12...
b5 {[%clk 0:04:11.5]} 13. Ne2 {[%clk 0:04:15.1]} 13... Nd7 {[%clk 0:04:10.1]}
14. Kf2 {[%clk 0:04:12.8]} 14... O-O {[%clk 0:03:58.9]} 15. Ng3 {[%clk 0:04:04]}
15... f6 {[%clk 0:03:57.9]} 16. exf6 {[%clk 0:04:00.4]} 16... Nxf6 {[%clk
0:03:56.4]} 17. Kg2 {[%clk 0:03:57.8]} 17... h6 {[%clk 0:03:55.1]} 18. Bd3
{[%clk 0:03:53.4]} 18... Rab8 {[%clk 0:03:35.7]} 19. Rhe1 {[%clk 0:03:37.1]}
19... Kf7 {[%clk 0:03:26.9]} 20. Bg6+ {[%clk 0:03:33.3]} 20... Nxg6 {[%clk
0:03:25.7]} 21. Qxg6+ {[%clk 0:03:31.7]} 21... Kg8 {[%clk 0:03:19.2]} 22. Rxe6
{[%clk 0:03:24.7]} 22... Nh7 {[%clk 0:02:57.3]} 23. Re7 {[%clk 0:03:17.9]} 1-0

[Event "Live Chess"]
[Site "Chess.com"]
[Date "2023.05.21"]
[Round "-"]
[White "manthanit"]
[Black "viktorskliarov"]
[Result "0-1"]
[WhiteElo "1081"]
[BlackElo "2651"]
[TimeControl "300"]
[EndTime "6:43:44 PDT"]
[Termination "viktorskliarov won by checkmate"]

1. e4 {[%clk 0:04:51.8]} 1... c5 {[%clk 0:04:58.9]} 2. Nf3 {[%clk 0:04:50.5]}
2... Nc6 {[%clk 0:04:58.1]} 3. Bc4 {[%clk 0:04:49.2]} 3... g6 {[%clk 0:04:56.5]}
4. d3 {[%clk 0:04:48.6]} 4... Bg7 {[%clk 0:04:55.7]} 5. O-O {[%clk 0:04:47.7]}
5... e6 {[%clk 0:04:55.1]} 6. Be3 {[%clk 0:04:42.7]} 6... b6 {[%clk 0:04:53.2]}
7. Nc3 {[%clk 0:04:41.8]} 7... Nge7 {[%clk 0:04:52.4]} 8. Rb1 {[%clk 0:04:39.6]}
8... d5 {[%clk 0:04:51]} 9. Bb3 {[%clk 0:04:37.5]} 9... d4 {[%clk 0:04:49.8]}
10. Nxd4 {[%clk 0:04:35]} 10... cxd4 {[%clk 0:04:45]} 11. Bf4 {[%clk 0:03:32.4]}
11... dxc3 {[%clk 0:04:42.8]} 12. bxc3 {[%clk 0:03:31.7]} 12... Bxc3 {[%clk
0:04:41.4]} 13. Qc1 {[%clk 0:03:28]} 13... O-O {[%clk 0:04:39.1]} 14. Bh6 {[%clk
0:03:26.7]} 14... Bg7 {[%clk 0:04:38]} 15. h4 {[%clk 0:03:16.1]} 15... Qd4
{[%clk 0:04:33.5]} 16. Kh1 {[%clk 0:03:11.7]} 16... Bxh6 {[%clk 0:04:30.3]} 17.
Qxh6 {[%clk 0:03:08.7]} 17... Qg7 {[%clk 0:04:29.2]} 18. Qe3 {[%clk 0:03:03.4]}
18... Nd4 {[%clk 0:04:21.1]} 19. Ba4 {[%clk 0:02:54.3]} 19... Bb7 {[%clk
0:04:17.5]} 20. c3 {[%clk 0:02:50.5]} 20... Ndc6 {[%clk 0:04:16.2]} 21. Rbc1
{[%clk 0:02:47.7]} 21... Rac8 {[%clk 0:04:11.1]} 22. Bb3 {[%clk 0:02:44.1]}
22... Rfd8 {[%clk 0:04:08.6]} 23. Rfd1 {[%clk 0:02:41.3]} 23... Ne5 {[%clk
0:04:04.9]} 24. d4 {[%clk 0:02:35.3]} 24... Ng4 {[%clk 0:04:01.8]} 25. Qg3
{[%clk 0:02:24.6]} 25... h5 {[%clk 0:03:59.4]} 26. Rd3 {[%clk 0:02:15.5]} 26...
Bxe4 {[%clk 0:03:57.2]} 27. Rd2 {[%clk 0:01:51.1]} 27... Nf5 {[%clk 0:03:55.8]}
28. Qh3 {[%clk 0:01:39.9]} 28... Bd5 {[%clk 0:03:51.3]} 29. c4 {[%clk
0:01:31.8]} 29... Bb7 {[%clk 0:03:48.9]} 30. f3 {[%clk 0:01:22.2]} 30... Rxd4
{[%clk 0:03:47.3]} 31. Rxd4 {[%clk 0:01:16.3]} 31... Qxd4 {[%clk 0:03:47.2]} 32.
fxg4 {[%clk 0:01:14]} 32... hxg4 {[%clk 0:03:45.3]} 33. Qc3 {[%clk 0:01:08.2]}
33... Qf2 {[%clk 0:03:38.7]} 34. Qe1 {[%clk 0:01:05.3]} 34... Qxg2# {[%clk
0:03:37.3]} 0-1

[Event "Live Chess"]
[Site "Chess.com"]
[Date "2023.05.21"]
[Round "-"]
[White "YrrriKharkiv"]
[Black "JoeRoot66"]
[Result "1-0"]
[WhiteElo "2065"]
[BlackElo "1890"]
[TimeControl "300"]
[EndTime "6:44:01 PDT"]
[Termination "YrrriKharkiv won by resignation"]

1. d4 {[%clk 0:04:55]} 1... d5 {[%clk 0:04:59]} 2. Nf3 {[%clk 0:04:53.2]} 2...
Nf6 {[%clk 0:04:58]} 3. c4 {[%clk 0:04:52.7]} 3... e6 {[%clk 0:04:56.9]} 4. Nc3
{[%clk 0:04:51.1]} 4... Nbd7 {[%clk 0:04:55.5]} 5. Bg5 {[%clk 0:04:49.9]} 5...
c6 {[%clk 0:04:54.1]} 6. Qc2 {[%clk 0:04:48.2]} 6... h6 {[%clk 0:04:50.7]} 7.
Bd2 {[%clk 0:04:45.5]} 7... Bb4 {[%clk 0:04:46.6]} 8. e3 {[%clk 0:04:44.6]} 8...
O-O {[%clk 0:04:44.7]} 9. Bd3 {[%clk 0:04:43]} 9... dxc4 {[%clk 0:04:43.4]} 10.
Bxc4 {[%clk 0:04:40.9]} 10... Nb6 {[%clk 0:04:41.7]} 11. Bd3 {[%clk 0:04:40.3]}
11... Nfd5 {[%clk 0:04:40.3]} 12. O-O {[%clk 0:04:39]} 12... Qf6 {[%clk
0:04:34.5]} 13. e4 {[%clk 0:04:30.2]} 13... Nf4 {[%clk 0:04:28]} 14. e5 {[%clk
0:04:23.5]} 14... Qe7 {[%clk 0:04:22]} 1-0